Cogmind - Beta 15 @@@ ROGUE MODE // 2025.07.07 @ 17:58:57 Player: EX-OCT Result: Assimilated 0b10! Performance ------------- Evolutions (9) 4500 Regions Visited (32) 6400 Robots Destroyed (69) 345 Value Destroyed (3726) 3726 Prototype IDs (221) 4420 Alien Tech Used (3) 600 Bonus (22846) 22846 TOTAL SCORE: 42837 Bonus ------- High Alert Combat Kills 67 Follower Combat Kills 2079 Entered Garrisons 1600 Used RIF Installer 4000 Network Hubs Disabled 400 Met Data Miner 300 Used Data Conduit 3000 Built Enhanced Grunts 300 A7 Reached Mainframe 300 Met R17 at Cetus 500 Met MAIN.C 5000 Hacked MAIN.C 300 Used 0b10 Conduit 2000 Win 3000 Cogmind --------- Core Integrity 1600/1600 Matter 24/300 Energy 40/100 System Corruption 0% Temperature Warm (134) Movement Flying (8) Location 0b10 Command Parts ------- > --- POWER (2) -------- Matter Drive > --- PROPULSION (10) -- Improved Cesium-ion Thruster Improved Cesium-ion Thruster Improved Cesium-ion Thruster Improved Cesium-ion Thruster Improved Surge Thruster Field Propulsion Drive Advanced Surge Thruster Field Propulsion Array > --- UTILITY (11) ----- Power Amplifier Advanced Heat Sink Large Storage Unit Enhanced Optical Array Advanced Sensor Array Advanced Signal Interpreter Stasis Canceller Improved Reaction Control System Improved Hacking Suite Improved Hacking Suite Relay Coupler [NC] (15) > --- WEAPON (2) ------- Improved Remote Datajack > --- INVENTORY (15) --- Light Particle Reactor Light Particle Reactor Advanced Heat Sink Experimental Energy Well (600) Advanced Sensor Array Quantum Capacitor Stasis Canceller Phase Redirector Relay Coupler [NC] (29) Core Cannon Great Axe Power Sword Peak State ------------ > --- POWER ------------ Micro Fission Core Matter Drive > --- PROPULSION ------- Improved Cesium-ion Thruster Improved Cesium-ion Thruster Improved Cesium-ion Thruster Improved Cesium-ion Thruster Improved Surge Thruster Field Propulsion Drive Advanced Surge Thruster Field Propulsion Array > --- UTILITY ---------- Power Amplifier Advanced Heat Sink Large Storage Unit Enhanced Optical Array Advanced Sensor Array Advanced Signal Interpreter Stasis Canceller Improved Reaction Control System Improved Hacking Suite Improved Hacking Suite Relay Coupler [NC] > --- WEAPON ----------- Improved Remote Datajack > --- INVENTORY -------- Light Particle Reactor Light Particle Reactor Advanced Heat Sink Experimental Energy Well Advanced Sensor Array Quantum Capacitor Stasis Canceller Phase Redirector Relay Coupler [NC] Core Cannon Great Axe Power Sword [Rating: 135] Favorites ----------- Power Micro Fission Core Engine Light Angular Momentum Engine Power Core Micro Fission Core Reactor Light Antimatter Reactor Propulsion Improved Cesium-ion Thruster Treads Light Treads Flight Unit Improved Cesium-ion Thruster Utility Improved Hacking Suite Device Structural Scanner Storage Medium Storage Unit Processor Improved Signal Interpreter Hackware Improved Hacking Suite Protection Light Armor Plating Artifact Phase Redirector Weapon Power Sword Energy Gun Medium Laser Energy Cannon Cooled Plasma Cannon Ballistic Gun Light Assault Rifle Launcher Heavy Rocket Launcher Special Weapon Improved Remote Datajack Impact Weapon Heavy Hammer Slashing Weapon Power Sword Special Melee Weapon Advanced Datajack Build | -11 -10 -10 -10 -9 -8 -8 -8 -8 -7 -7 -7 -7 -6 -6 -6 -6 -6 -5 -5 -4 -4 -4 -4 -4 -4 -4 -3 -3 -2 -2 -1 -1 ------- Run | Yrd Mat Min Exi Min Mat Gar Mat Gar Fac Low Low Dat Pro Fac Gar Fac Gar Fac Gar Fac Gar Ext Cet Arc Hub Gar Res Qua Res Gar Acc Com Slots Evolved 18 | . . . . . 4 . . . 2 . . . . 2 . . . 2 . 2 . . . . . . 2 . 2 . 2 . Power 1 | . . . . . . . . . . . . . . . . . . . . 1 . . . . . . . . . . . . Propulsion 8 | . . . . . 2 . . . 1 . . . . 1 . . . 1 . 1 . . . . . . . . 1 . 1 . Utility 9 | . . . . . 2 . . . 1 . . . . 1 . . . 1 . . . . . . . . 2 . 1 . 1 . Weapon . | . . . . . . . . . . . . . . . . . . . . . . . . . . . . . . . . . Parts Attached 122 | 4 9 . 1 . 9 12 8 . 18 . 1 1 . 5 1 4 4 3 1 3 . 9 1 3 2 2 8 1 2 4 5 1 Power 16 | . . . . . 1 . 1 . 1 . 1 1 . 1 . . 1 . 1 1 . 1 . 1 . . 1 . . 2 1 1 Engine 5 | . . . . . 1 . 1 . . . 1 1 . . . . . . . . . . . 1 . . . . . . . . Core 7 | . . . . . . . . . 1 . . . . 1 . . 1 . 1 1 . . . . . . . . . 2 . . Reactor 4 | . . . . . . . . . . . . . . . . . . . . . . 1 . . . . 1 . . . 1 1 Propulsion 39 | 2 3 . . . 3 6 4 . 10 . . . . 1 . 3 . . . . . 1 . . . 1 2 . 1 1 1 . Treads 2 | 2 . . . . . . . . . . . . . . . . . . . . . . . . . . . . . . . . Leg . | . . . . . . . . . . . . . . . . . . . . . . . . . . . . . . . . . Wheel . | . . . . . . . . . . . . . . . . . . . . . . . . . . . . . . . . . Hover . | . . . . . . . . . . . . . . . . . . . . . . . . . . . . . . . . . Flight 37 | . 3 . . . 3 6 4 . 10 . . . . 1 . 3 . . . . . 1 . . . 1 2 . 1 1 1 . Utility 47 | . 4 . . . 4 2 2 . 6 . . . . 2 1 1 2 3 . 2 . 3 1 2 2 1 4 1 . 1 3 . Device 17 | . 1 . . . 1 . 1 . 2 . . . . 1 . . 1 . . 1 . 2 1 . 1 . 1 . . 1 3 . Storage 3 | . 1 . . . 1 . . . . . . . . . . . . 1 . . . . . . . . . . . . . . Processor 3 | . . . . . . . . . 1 . . . . . . . . . . . . . . . 1 . 1 . . . . . Hackware 19 | . . . . . 1 1 1 . 3 . . . . 1 1 1 1 2 . 1 . 1 . 2 . 1 2 . . . . . Protection 4 | . 2 . . . 1 1 . . . . . . . . . . . . . . . . . . . . . . . . . . Artifact 1 | . . . . . . . . . . . . . . . . . . . . . . . . . . . . 1 . . . . Weapon 20 | 2 2 . 1 . 1 4 1 . 1 . . . . 1 . . 1 . . . . 4 . . . . 1 . 1 . . . Energy Gun 1 | 1 . . . . . . . . . . . . . . . . . . . . . . . . . . . . . . . . Energy Cannon 2 | . . . . . . . . . . . . . . . . . . . . . . 1 . . . . . . 1 . . . Ballistic Gun 3 | 1 1 . . . . 1 . . . . . . . . . . . . . . . . . . . . . . . . . . Ballistic Cannon . | . . . . . . . . . . . . . . . . . . . . . . . . . . . . . . . . . Launcher 2 | . . . . . . 1 . . . . . . . . . . 1 . . . . . . . . . . . . . . . Special Weapon 3 | . . . . . . . . . 1 . . . . . . . . . . . . 2 . . . . . . . . . . Impact Weapon 2 | . 1 . . . . 1 . . . . . . . . . . . . . . . . . . . . . . . . . . Slashing Weapon 4 | . . . . . 1 1 . . . . . . . 1 . . . . . . . . . . . . 1 . . . . . Piercing Weapon . | . . . . . . . . . . . . . . . . . . . . . . . . . . . . . . . . . Special Melee Weapon 3 | . . . 1 . . . 1 . . . . . . . . . . . . . . 1 . . . . . . . . . . Unidentified Prototypes 6 | . 1 . . . 1 . . . 1 . . . . . . . . . . . . . . . . . . 1 1 . . 1 Parts Lost 40 | . 2 . . . 1 13 1 . 1 . 1 1 . . . . 3 1 . 2 . 3 . . . 6 . . . 2 2 1 Power 7 | . . . . . . 1 . . . . 1 1 . . . . 1 1 . . . . . . . 1 . . . . . 1 Propulsion 14 | . 1 . . . . 7 . . . . . . . . . . . . . . . 1 . . . 2 . . . 1 2 . Utility 12 | . 1 . . . . 3 1 . 1 . . . . . . . 2 . . 1 . 2 . . . 1 . . . . . . Weapon 7 | . . . . . 1 2 . . . . . . . . . . . . . 1 . . . . . 2 . . . 1 . . Highest Loss Streak 6 | . 1 . . . 1 5 1 . 1 . 1 1 . . . . 2 1 . 2 . 2 . . . 6 . . . 2 2 1 To Critical Strikes . | . . . . . . . . . . . . . . . . . . . . . . . . . . . . . . . . . Average Backups 9 | . 5 7 8 8 6 9 8 9 9 9 8 8 7 8 9 9 9 8 11 10 10 13 14 14 14 13 10 12 12 12 10 12 Power . | . . . . . . . . 1 1 2 1 1 . 1 1 1 . 1 1 . 1 1 2 2 2 1 1 1 . . 1 1 Propulsion 2 | . 2 2 2 2 . . 4 5 3 3 3 3 3 2 2 1 2 1 4 3 3 2 3 3 3 3 2 3 2 2 . . Utility 3 | . 1 3 4 4 2 4 2 2 2 2 2 2 2 2 4 4 4 2 2 2 3 4 4 4 5 4 3 5 5 5 5 7 Weapon 2 | . . 1 2 2 1 2 . 1 1 2 1 1 1 1 2 2 2 3 4 4 3 4 4 3 3 3 2 2 3 2 2 2 Tool/Special . | . . . . . . . . . . . . . . . . . . . . . . . . . . . . . . . . . Unused Backups 14 | . . . . . . . . . 6 . . . . . 1 . . . . . . . . . . . . . . . . 7 Power 2 | . . . . . . . . . . . . . . . 1 . . . . . . . . . . . . . . . . 1 Propulsion 5 | . . . . . . . . . 5 . . . . . . . . . . . . . . . . . . . . . . . Utility 6 | . . . . . . . . . 1 . . . . . . . . . . . . . . . . . . . . . . 5 Weapon 1 | . . . . . . . . . . . . . . . . . . . . . . . . . . . . . . . . 1 Tool/Special . | . . . . . . . . . . . . . . . . . . . . . . . . . . . . . . . . . Average Slot Usage (%) 91 | . 81 85 85 85 96 84 87 90 99 100 100 100 100 96 96 100 94 97 94 96 99 94 100 99 100 88 75 80 80 81 86 88 Engine 1 | . . . . . 7 2 5 9 . . . 7 7 . . . . . . . . . . 3 5 3 . . . . . . Core 3 | . . . . . . . . . 6 7 6 . . 5 6 6 6 4 5 10 10 10 10 6 5 3 . . . 2 4 4 Flight 35 | . 26 28 28 28 35 32 36 36 37 38 38 38 38 39 40 40 40 40 41 41 42 38 42 42 42 39 32 33 33 33 32 32 Device 7 | . 8 14 14 14 16 3 2 . 3 13 15 15 15 13 6 6 5 5 5 4 9 5 10 5 6 7 8 9 8 8 17 20 Storage 6 | . 7 14 14 14 9 9 9 9 7 7 7 7 7 6 6 6 6 5 5 5 5 5 5 5 5 5 4 4 4 4 4 4 Processor 3 | . . . . . . . . . 5 7 7 7 7 6 6 6 6 5 5 5 5 5 5 5 5 5 7 9 8 8 8 8 Hackware 12 | . . . . . 8 12 12 9 19 8 7 7 7 10 16 20 16 20 17 20 16 18 15 19 19 13 11 14 13 13 12 12 Protection 2 | . 8 . . . . 8 9 9 . . . . . . . . . . . . . . . . . . . . . . . . Ballistic Gun 2 | . 15 14 . . 7 1 . . . . . . . . . . . . . . . . . . . . . . . . . . Special Weapon 1 | . . . . . . . . . 2 7 . . . . 6 6 2 5 5 3 . . 5 5 5 3 . . . . . 2 Impact Weapon 2 | . 8 14 14 14 9 9 . . . . . . . . . . . . . . . . . . . . . . . . . . Slashing Weapon 4 | . . . . . . 3 9 9 7 7 15 15 15 13 6 6 6 5 5 5 9 4 5 5 5 2 3 4 3 4 4 2 Special Melee Weapon 1 | . . . 14 14 . . 4 9 4 . . . . . . . . . . . . 4 . . . . . . . . . . Peak Build Rating 135 | 4 12 13 13 13 30 36 33 28 55 58 57 54 54 71 71 75 75 80 78 96 95 99 98 99 98 99 98 117 134 119 129 135 Average Rating 59 | 3 10 12 13 13 25 28 29 28 44 57 56 53 54 66 69 74 66 77 74 91 94 92 97 96 96 86 92 101 113 113 126 133 On Entrance 62 | . 4 12 13 13 13 30 19 28 28 53 57 54 54 54 67 71 75 69 72 74 90 95 98 98 96 98 66 98 104 114 109 129 Naked Turns . | . . . . . . . . . . . . . . . . . . . . . . . . . . . . . . . . . Heaviest Build 57 | 3 10 10 10 10 26 28 19 19 22 23 23 20 20 27 27 24 31 34 35 40 41 42 42 42 43 46 49 38 54 57 51 53 Greatest Support 62 | 3 10 10 10 10 28 29 20 20 30 30 30 30 30 36 36 36 36 36 36 42 48 48 46 42 46 51 56 51 55 62 59 58 Greatest Overweight (x) 2 | . . . . . 1 2 1 . . . . . . . . . . . . . . 1 . . . . . . . . 1 . Average Overweight (x) . | . . . . . . . . . . . . . . . . . . . . . . . . . . . . . . . . . Largest Inventory Capacity 15 | 5 8 8 8 8 10 10 10 10 10 10 10 10 10 10 10 10 10 15 15 15 15 15 15 15 15 15 15 15 15 15 15 15 Average Capacity 11 | 5 6 8 8 8 9 10 10 10 10 10 10 10 10 10 10 10 10 12 15 15 15 15 15 15 15 15 15 15 15 15 15 15 Most Carried 15 | . 8 8 8 8 10 10 10 9 10 10 9 8 7 10 10 10 10 12 11 11 12 15 15 15 15 15 13 15 15 15 14 14 Average Carried 10 | . 5 7 8 8 6 9 8 9 9 9 8 7 7 8 9 9 9 8 11 10 10 13 14 15 15 14 10 13 13 13 12 13 Final Capacity 15 | 5 8 8 8 8 10 10 10 10 10 10 10 10 10 10 10 10 10 15 15 15 15 15 15 15 15 15 15 15 15 15 15 15 Final Carried 15 | . 7 8 8 8 10 5 9 9 10 9 8 7 7 10 10 10 9 12 11 11 12 15 15 15 15 13 12 15 13 14 14 14 Class Distribution -------------------- 22% | Mutant 17% | Commander-Sprinter 17% | Hacker-Sprinter 15% | Sprinter 8% | Hacker-Scout 8% | Bothacker-Sprinter 6% | Scout Dominant Class ---------------- Mutant | -10/Materials Mutant | -10/Mines Mutant | -10/Exiles Mutant | -9/Mines Sprinter | -8/Materials Sprinter | -8/Garrison Sprinter | -8/Materials Sprinter | -8/Garrison Hacker-Sprinter | -7/Factory Scout | -7/Lower Caves Scout | -7/Lower Caves Scout | -7/Data Miner Scout | -6/Proximity Caves Hacker-Scout | -6/Factory Hacker-Sprinter | -6/Garrison Hacker-Sprinter | -6/Factory Sprinter | -6/Garrison Sprinter | -5/Factory Sprinter | -5/Garrison Hacker-Sprinter | -4/Factory Hacker-Sprinter | -4/Garrison Bothacker-Sprinter | -4/Extension Commander-Sprinter | -4/Cetus Commander-Sprinter | -4/Archives Commander-Sprinter | -4/Hub_04(d) Scavenger-Sprinter | -4/Garrison Hacker-Scout | -3/Research Hacker-Scout | -3/Quarantine Hacker-Scout | -2/Research Hacker-Scout | -2/Garrison Hacker-Scout | -1/Access Scavenger-Scout | -1/Command Resources | -11 -10 -10 -10 -9 -8 -8 -8 -8 -7 -7 -7 -7 -6 -6 -6 -6 -6 -5 -5 -4 -4 -4 -4 -4 -4 -4 -3 -3 -2 -2 -1 -1 ----------- Run | Yrd Mat Min Exi Min Mat Gar Mat Gar Fac Low Low Dat Pro Fac Gar Fac Gar Fac Gar Fac Gar Ext Cet Arc Hub Gar Res Qua Res Gar Acc Com Matter Collected 2093 | 244 206 . . 19 100 392 126 . 170 25 10 . 15 18 . . 156 115 . 106 . 155 20 30 . 28 81 . . 77 . . Remotely . | . . . . . . . . . . . . . . . . . . . . . . . . . . . . . . . . . Salvage Created 2035 | 55 189 . . . . 480 136 . 162 . . . . . . . 203 115 . 113 . 171 62 309 . 40 . . . . . . Parts 125 | 2 14 . . . . 24 8 . 18 . . . . . . . 18 2 . 8 . 5 2 16 . 8 . . . . . . Haulers Intercepted 2 | . 1 . . . . . . . . . . . . . . . . 1 . . . . . . . . . . . . . . Recyclers Shooed . | . . . . . . . . . . . . . . . . . . . . . . . . . . . . . . . . . Parts Field Recycled . | . . . . . . . . . . . . . . . . . . . . . . . . . . . . . . . . . Retrieved Matter . | . . . . . . . . . . . . . . . . . . . . . . . . . . . . . . . . . Parts Self-Destructed . | . . . . . . . . . . . . . . . . . . . . . . . . . . . . . . . . . Prevented . | . . . . . . . . . . . . . . . . . . . . . . . . . . . . . . . . . Kills | -11 -10 -10 -10 -9 -8 -8 -8 -8 -7 -7 -7 -7 -6 -6 -6 -6 -6 -5 -5 -4 -4 -4 -4 -4 -4 -4 -3 -3 -2 -2 -1 -1 ------- Run | Yrd Mat Min Exi Min Mat Gar Mat Gar Fac Low Low Dat Pro Fac Gar Fac Gar Fac Gar Fac Gar Ext Cet Arc Hub Gar Res Qua Res Gar Acc Com Combat Hostiles Destroyed 43 | . 7 . . . . 19 3 . 1 . . . . . . . 8 . . . . 2 . . . 3 . . . . . . Melee 7 | . . . . . . 1 3 . 1 . . . . . . . . . . . . 2 . . . . . . . . . . Guns 7 | . 7 . . . . . . . . . . . . . . . . . . . . . . . . . . . . . . . AOE 26 | . . . . . . 15 . . . . . . . . . . 8 . . . . . . . . 3 . . . . . . Classes Destroyed 10 | 1 4 . . . . . . . 3 . . . . . . . 1 . . . . . . . . 1 . . . . . . Worker 2 | . . . . . . . . . 1 . . . . . . . . . . 1 . . . . . . . . . . . . Builder 3 | . . . . . . . . . 3 . . . . . . . . . . . . . . . . . . . . . . . Hauler 2 | . 1 . . . . . . . . . . . . . . . . 1 . . . . . . . . . . . . . . Recycler 3 | 1 . . . . . . 1 . . . . . . . . . . . . 1 . . . . . . . . . . . . Operator 12 | . 1 . . . . . 1 . . . . . . . . . . . . . . 1 . 9 . . . . . . . . Watcher 4 | . . . . . . . . . 2 . . . . . . . . . . . . . 2 . . . . . . . . . Swarmer 22 | . 6 . . . . 8 3 . 1 . . . . . . . 4 . . . . . . . . . . . . . . . Cutter 3 | . . . . . . . . . . . . . . . . . . . . . . . . . . 3 . . . . . . Grunt 17 | . 1 . . . . 11 . . . . . . . . . . 3 . . . . 2 . . . . . . . . . . Programmer 1 | . . . . . . . . . . . . . . . . . 1 . . . . . . . . . . . . . . . Best Kill Streak 8 | 1 2 . . . . 6 3 . 3 . . . . . . . 8 1 . 1 . 1 1 8 . 3 . . . . . . Combat Bots Only 8 | . 2 . . . . 6 3 . 1 . . . . . . . 8 . . . . 1 . . . 3 . . . . . . Max Kills in Single Turn 4 | 1 1 . . . . 4 1 . 1 . . . . . . . 3 1 . 1 . 1 1 1 . 1 . . . . . . Gunslinging . | . . . . . . . . . . . . . . . . . . . . . . . . . . . . . . . . . Exploded 4 | . . . . . . 4 . . . . . . . . . . 3 . . . . . . . . 1 . . . . . . Melee 1 | . . . . . . 1 1 . 1 . . . . . . . . . . . . 1 . . . . . . . . . . Uniques/NPCs Destroyed . | . . . . . . . . . . . . . . . . . . . . . . . . . . . . . . . . . Combat | -11 -10 -10 -10 -9 -8 -8 -8 -8 -7 -7 -7 -7 -6 -6 -6 -6 -6 -5 -5 -4 -4 -4 -4 -4 -4 -4 -3 -3 -2 -2 -1 -1 -------- Run | Yrd Mat Min Exi Min Mat Gar Mat Gar Fac Low Low Dat Pro Fac Gar Fac Gar Fac Gar Fac Gar Ext Cet Arc Hub Gar Res Qua Res Gar Acc Com Hostile Shots Fired 506 | . 52 . . 6 22 132 19 4 38 . 5 4 4 . 4 3 52 17 7 20 13 25 . . . 21 18 12 . 22 . 6 Missed 241 | . 18 . . 2 15 44 9 3 23 . 1 3 3 . 2 1 30 11 5 9 8 12 . . . 10 12 5 . 10 . 5 Hits 265 | . 34 . . 4 7 88 10 1 15 . 4 1 1 . 2 2 22 6 2 11 5 13 . . . 11 6 7 . 12 . 1 Melee 9 | . . . . . . . . . . . . . . . . . . . . . . . . . . 6 . . . 3 . . Projectile 256 | . 34 . . 4 7 88 10 1 15 . 4 1 1 . 2 2 22 6 2 11 5 13 . . . 5 6 7 . 9 . 1 AOE 3 | . . . . . . . . . . . . . . . . . . . . . . . . . . 3 . . . . . . Critical Strikes 11 | . 1 . . . 1 1 3 . . . . . . . . . 1 . . . . . . . . 4 . . . . . . Actively Blocked 1 | . . . . . . 1 . . . . . . . . . . . . . . . . . . . . . . . . . . Damage Taken 4494 | . 348 . . 30 104 1269 113 18 142 . 125 45 17 28 39 38 442 91 41 183 83 284 . . . 387 105 117 . 304 105 36 Core 995 | . 48 . . 17 16 325 50 . 56 . . 6 . . 23 20 120 . . 73 36 105 . . . 17 . 32 . 51 . . Absorbed by Shields 180 | . . . . . . 130 . . . . . . . . . . . . . . . 50 . . . . . . . . . . Redirected to Shielding 100 | . . . . . . 100 . . . . . . . . . . . . . . . . . . . . . . . . . . Regen/Repaired (Parts) 309 | . . . . . . . . . 26 . . . . . . 54 . . . 32 . 78 . . . . . . 45 . . 74 Core Remaining (%) 84 | 100 . . . 74 . . . 28 . . . . 91 . . . 80 . 100 . . . . . . 79 . 97 . 96 . 100 Volleys Fired 102 | 4 34 . . . . 16 . . . . . . . . . . 8 1 . . . 30 . . . 7 . . . . . 2 Largest 2 | 2 2 . . . . 1 . . . . . . . . . . 1 1 . . . 1 . . . 1 . . . . . 1 Hottest 105 | 70 70 . . . . 36 . . . . . . . . . . 39 5 . . . 105 . . . 39 . . . . . 7 Shots Fired 140 | 8 68 . . . . 16 . . . . . . . . . . 8 1 . . . 30 . . . 7 . . . . . 2 Gun 76 | 8 68 . . . . . . . . . . . . . . . . . . . . . . . . . . . . . . . Cannon 30 | . . . . . . . . . . . . . . . . . . . . . . 30 . . . . . . . . . . Launcher 27 | . . . . . . 16 . . . . . . . . . . 6 . . . . . . . . 5 . . . . . . Special 7 | . . . . . . . . . . . . . . . . . 2 1 . . . . . . . 2 . . . . . 2 Kinetic 46 | 4 42 . . . . . . . . . . . . . . . . . . . . . . . . . . . . . . . Thermal 60 | 4 26 . . . . . . . . . . . . . . . . . . . . 30 . . . . . . . . . . Explosive 27 | . . . . . . 16 . . . . . . . . . . 6 . . . . . . . . 5 . . . . . . Electromagnetic . | . . . . . . . . . . . . . . . . . . . . . . . . . . . . . . . . . Robot Hit Streak 7 | 4 6 . . . . 5 . . . . . . . . . . 7 2 . . . . . . . 4 . . . . . 2 Robot Miss Streak 3 | 2 3 . . . . 1 . . . . . . . . . . 2 . . . . . . . . 3 . . . . . . Penetration Max . | . . . . . . . . . . . . . . . . . . . . . . . . . . . . . . . . . Secondary Targets 1 | . 1 . . . . . . . . . . . . . . . . . . . . . . . . . . . . . . . Max Gunslinging Chain 1 | . 1 . . . . . . . . . . . . . . . . . . . . . . . . . . . . . . . Shots Hit Robots 168 | 5 43 . 5 . . 18 7 . 8 . . 1 . . . . 3 3 . 2 . 48 4 17 . 2 . . . . . 2 Core Hits 86 | 2 16 . . . . 31 4 . 4 . . . . . . . 12 1 . 2 . 3 2 4 . 5 . . . . . . Critical Kills . | . . . . . . . . . . . . . . . . . . . . . . . . . . . . . . . . . Critical Parts Destroyed 3 | 1 . . . . . 2 . . . . . . . . . . . . . . . . . . . . . . . . . . Critical Strikes 10 | 1 3 . . . . 2 . . . . . . . . . . . . . . . 4 . . . . . . . . . . Burn 3 | . 3 . . . . . . . . . . . . . . . . . . . . . . . . . . . . . . . Destroy 1 | 1 . . . . . . . . . . . . . . . . . . . . . . . . . . . . . . . . Smash 2 | . . . . . . 2 . . . . . . . . . . . . . . . . . . . . . . . . . . Sever 4 | . . . . . . . . . . . . . . . . . . . . . . 4 . . . . . . . . . . Melee Attacks 347 | . 6 . 5 . 12 53 17 3 29 3 9 6 7 13 3 15 7 13 . 16 3 49 10 18 13 4 7 10 3 3 7 3 Impact 56 | . 6 . . . 11 39 . . . . . . . . . . . . . . . . . . . . . . . . . . Slashing 245 | . . . . . 1 14 13 3 28 3 9 6 7 13 3 15 7 13 . 16 3 13 10 18 13 4 7 10 3 3 7 3 Piercing . | . . . . . . . . . . . . . . . . . . . . . . . . . . . . . . . . . Sneak Attacks 62 | . . . 5 . . . 1 . 6 . . 1 . . . . . 1 . 2 . 37 . 9 . . . . . . . . Combat Hostiles 3 | . . . . . . . . . . . . . . . . . . . . . . 3 . . . . . . . . . . Follow-up Attacks . | . . . . . . . . . . . . . . . . . . . . . . . . . . . . . . . . . Damage Inflicted 7523 | 54 405 . . . . 2524 233 . 435 . . 66 . . . . 630 156 . 194 . 798 213 1596 . 219 . . . . . . Guns 459 | 54 405 . . . . . . . . . . . . . . . . . . . . . . . . . . . . . . . Cannons . | . . . . . . . . . . . . . . . . . . . . . . . . . . . . . . . . . Explosions 2808 | . . . . . . 1959 . . . . . . . . . . 630 . . . . . . . . 219 . . . . . . Melee 4256 | . . . . . . 565 233 . 435 . . 66 . . . . . 156 . 194 . 798 213 1596 . . . . . . . . Ramming . | . . . . . . . . . . . . . . . . . . . . . . . . . . . . . . . . . Kinetic 223 | 17 206 . . . . . . . . . . . . . . . . . . . . . . . . . . . . . . . Thermal 236 | 37 199 . . . . . . . . . . . . . . . . . . . . . . . . . . . . . . . Explosive 2808 | . . . . . . 1959 . . . . . . . . . . 630 . . . . . . . . 219 . . . . . . Electromagnetic . | . . . . . . . . . . . . . . . . . . . . . . . . . . . . . . . . . Impact 523 | . . . . . . 523 . . . . . . . . . . . . . . . . . . . . . . . . . . Slashing 3733 | . . . . . . 42 233 . 435 . . 66 . . . . . 156 . 194 . 798 213 1596 . . . . . . . . Piercing . | . . . . . . . . . . . . . . . . . . . . . . . . . . . . . . . . . Highest Corruption 5 | . 2 2 2 2 . . . . . . 2 2 2 . . . 1 1 1 . . . . . . 5 . . . . . . Average Corruption 1 | . 1 2 2 2 . . . . . . 2 2 2 . . . 1 1 1 . . . . . . 5 . . . . . . Corruption Purged . | . . . . . . . . . . . . . . . . . . . . . . . . . . . . . . . . . Corruption Blocked . | . . . . . . . . . . . . . . . . . . . . . . . . . . . . . . . . . Effects 19 | . 12 . 3 . . . . . . . . 1 . . . . 2 . . . . . . . . 1 . . . . . . Message Errors 3 | . 3 . . . . . . . . . . . . . . . . . . . . . . . . . . . . . . . Matter Fused 8 | . 5 . 1 . . . . . . . . . . . . . 1 . . . . . . . . 1 . . . . . . Heat Flow Errors 4 | . 2 . 1 . . . . . . . . . . . . . 1 . . . . . . . . . . . . . . . Energy Discharges 2 | . 1 . 1 . . . . . . . . . . . . . . . . . . . . . . . . . . . . . Parts Rejected 1 | . 1 . . . . . . . . . . . . . . . . . . . . . . . . . . . . . . . Parts Fused 1 | . . . . . . . . . . . . 1 . . . . . . . . . . . . . . . . . . . . Overload Shots 1 | . . . . . . . . . . . . . . . . . . . . . . 1 . . . . . . . . . . Overflow Damage 1245 | . . . . . . 259 17 . 107 . . 6 . . . . 24 . . . . 137 9 680 . 6 . . . . . . Projectiles . | . . . . . . . . . . . . . . . . . . . . . . . . . . . . . . . . . Explosions 155 | . . . . . . 125 . . . . . . . . . . 24 . . . . . . . . 6 . . . . . . Melee 1090 | . . . . . . 134 17 . 107 . . 6 . . . . . . . . . 137 9 680 . . . . . . . . Knockbacks 2 | . . . . . . 2 . . . . . . . . . . . . . . . . . . . . . . . . . . Impact 2 | . . . . . . 2 . . . . . . . . . . . . . . . . . . . . . . . . . . Kinetic . | . . . . . . . . . . . . . . . . . . . . . . . . . . . . . . . . . Secondary . | . . . . . . . . . . . . . . . . . . . . . . . . . . . . . . . . . Self-Inflicted Damage 400 | . . . . . . 237 . . . . . . . . . . 86 . . . . . . . . 77 . . . . . . Shots 12 | . . . . . . 8 . . . . . . . . . . 2 . . . . . . . . 2 . . . . . . Rammed . | . . . . . . . . . . . . . . . . . . . . . . . . . . . . . . . . . Targets Rammed . | . . . . . . . . . . . . . . . . . . . . . . . . . . . . . . . . . Kicked . | . . . . . . . . . . . . . . . . . . . . . . . . . . . . . . . . . Crushed . | . . . . . . . . . . . . . . . . . . . . . . . . . . . . . . . . . Highest Temperature 324 | 40 248 . 225 . 10 8 2 5 180 39 95 1 24 123 266 119 256 42 104 216 194 324 177 170 77 250 39 . 58 287 280 122 Average Temperature 74 | 19 80 . 117 . 5 4 2 5 54 18 31 1 8 55 103 59 114 10 34 143 112 89 47 59 26 74 24 . 29 114 73 29 Received Heat Transfer 819 | . 129 . . . 81 384 27 9 18 . 9 . . . 12 18 36 9 . . 9 39 . . . 9 18 12 . . . . Effects 1 | . . . . . . . . . . . . . . . . . . . . . . 1 . . . . . . . . . . Energy Bleed 1 | . . . . . . . . . . . . . . . . . . . . . . 1 . . . . . . . . . . Siege Activations . | . . . . . . . . . . . . . . . . . . . . . . . . . . . . . . . . . Martial Activations . | . . . . . . . . . . . . . . . . . . . . . . . . . . . . . . . . . Shielding Activations . | . . . . . . . . . . . . . . . . . . . . . . . . . . . . . . . . . Robots Disrupted . | . . . . . . . . . . . . . . . . . . . . . . . . . . . . . . . . . Combat Hostiles . | . . . . . . . . . . . . . . . . . . . . . . . . . . . . . . . . . Robots Corrupted 3 | . . . . . . 3 . . . . . . . . . . . . . . . . . . . . . . . . . . Combat Hostiles 3 | . . . . . . 3 . . . . . . . . . . . . . . . . . . . . . . . . . . Parts Fried 1 | . . . . . . 1 . . . . . . . . . . . . . . . . . . . . . . . . . . Impact Corruptions 7 | . . . . . . 7 . . . . . . . . . . . . . . . . . . . . . . . . . . Robots Melted . | . . . . . . . . . . . . . . . . . . . . . . . . . . . . . . . . . Combat Hostiles . | . . . . . . . . . . . . . . . . . . . . . . . . . . . . . . . . . Parts Melted 1 | . 1 . . . . . . . . . . . . . . . . . . . . . . . . . . . . . . . Heat Transferred 925 | 111 814 . . . . . . . . . . . . . . . . . . . . . . . . . . . . . . . Parts Sabotaged . | . . . . . . . . . . . . . . . . . . . . . . . . . . . . . . . . . Parts Stolen . | . . . . . . . . . . . . . . . . . . . . . . . . . . . . . . . . . Parts Stripped . | . . . . . . . . . . . . . . . . . . . . . . . . . . . . . . . . . Power Chain Reactions . | . . . . . . . . . . . . . . . . . . . . . . . . . . . . . . . . . Alert | -11 -10 -10 -10 -9 -8 -8 -8 -8 -7 -7 -7 -7 -6 -6 -6 -6 -6 -5 -5 -4 -4 -4 -4 -4 -4 -4 -3 -3 -2 -2 -1 -1 ------- Run | Yrd Mat Min Exi Min Mat Gar Mat Gar Fac Low Low Dat Pro Fac Gar Fac Gar Fac Gar Fac Gar Ext Cet Arc Hub Gar Res Qua Res Gar Acc Com Maximum Alert Level 3 | . . . . . . 3 2 . 1 . . . . . . . 2 1 . . . 2 2 1 1 1 1 1 . 1 . . Low Security (%) 66 | 100 100 100 . 100 100 27 52 100 84 . . . . 100 100 100 37 . 100 100 100 54 . 20 90 49 73 96 100 97 100 100 Level 1 20 | . . . . . . 17 41 . 15 . . . . . . . 11 100 . . . 16 30 79 9 50 26 3 . 2 . . Level 2 13 | . . . . . . 50 6 . . . . . . . . . 51 . . . . 29 69 . . . . . . . . . Level 3 . | . . . . . . 4 . . . . . . . . . . . . . . . . . . . . . . . . . . Level 4 . | . . . . . . . . . . . . . . . . . . . . . . . . . . . . . . . . . Level 5 . | . . . . . . . . . . . . . . . . . . . . . . . . . . . . . . . . . High Security . | . . . . . . . . . . . . . . . . . . . . . . . . . . . . . . . . . Max Security . | . . . . . . . . . . . . . . . . . . . . . . . . . . . . . . . . . Peak Influence 779 | 5 125 . . . 115 779 411 42 215 . . . . 159 73 130 526 283 182 137 147 644 493 387 241 333 215 204 145 202 133 65 Initial 379 | . 3 . . . . 69 379 6 21 . . . . 150 3 37 86 266 172 95 95 56 320 181 54 95 170 120 114 108 120 62 Average 180 | 1 35 . . . 29 418 182 13 110 . . . . 50 55 97 326 267 176 117 102 243 423 273 118 198 191 141 122 139 110 52 Influence Increases 6110 | 5 342 . . . 203 840 174 36 495 . 15 . . 185 70 167 472 81 10 122 92 906 373 286 403 288 105 104 51 174 78 33 Destroy 0b10 Robot/C 1700 | . 140 . . . . 380 80 . 20 . . . . . . . 160 20 . . . 380 160 80 140 60 . . . 80 . . Destroy 0b10 Robot/NC 135 | 5 10 . . . . 5 10 . 30 . . . . . . . . 5 . 10 . 5 10 45 . . . . . . . . Destroy Leader 158 | . 22 . . . . 30 20 . 4 . . . . . . . 20 2 . . . 30 . . 30 . . . . . . . Allied During Kill 741 | . . . . . . . 2 . . . . . . . . . . 2 . . . 377 170 125 41 . . . . 24 . . Successful Hack 435 | . 16 . . . 26 12 12 . 124 . . . . 25 10 48 . . 10 39 5 36 . . . 24 18 . 27 . 3 . Select Force Hacks 130 | . . . . . . . . . 30 . . . . . . . . . . . . . . . 100 . . . . . . . Disable Machine 207 | . . . . . . 15 . . 15 . . . . . . 15 . . . . . . . 30 60 . 15 45 . . 12 . Anti-Garrison Action 400 | . . . . . . 150 . . . . . . . . 50 . 100 . . . 50 . . . . 50 . . . . . . Destroy Structure 620 | . 4 . . . 12 143 5 6 17 . . . . 10 10 14 72 22 . 28 7 48 18 6 32 94 12 14 9 13 15 9 Advance Influence 150 | . . . . . . . . . . . . . . 150 . . . . . . . . . . . . . . . . . . Partial Spotted 462 | . 15 . . . 30 30 15 . 105 . . . . . . . 45 30 . 30 30 30 15 . . 30 30 . 15 . . 12 Lose Combat Pursuer 972 | . 135 . . . 135 75 30 30 150 . 15 . . . . 90 75 . . 15 . . . . . 30 30 45 . 57 48 12 Influence Decreases 6075 | . 347 . . . 96 168 943 4 323 100 93 36 . 180 2 116 88 342 75 167 122 441 492 582 423 122 193 115 110 117 182 96 Entered New Map 2319 | . 2 . . . . 38 400 4 21 80 23 36 . . 2 36 38 242 75 87 42 51 252 272 103 42 133 95 90 37 82 36 Time Decay 2111 | . 333 . . . 86 . 127 . 262 20 60 . . 43 . 70 . 70 . 60 . 280 160 270 40 . 60 20 20 . 80 50 Lost Part 380 | . 10 . . . 10 130 10 . 10 . 10 . . . . . 30 10 . 20 . 30 . . . 60 . . . 20 20 10 Lost Ally 722 | . 2 . . . . . . . 30 . . . . . . 10 20 20 . . 80 80 80 40 280 20 . . . 60 . . Purge Threat 543 | . . . . . . . 406 . . . . . . 137 . . . . . . . . . . . . . . . . . . Squads Dispatched 30 | . 1 . . . . . . . 6 . . . . 1 . 1 . 1 . 4 . 2 . . 7 . 1 1 2 . 1 2 Investigation 22 | . . . . . . . . . 5 . . . . 1 . 1 . 1 . 3 . 1 . . 5 . 1 . 2 . . 2 Extermination 2 | . . . . . . . . . 1 . . . . . . . . . . . . . . . . . . . . . 1 . Reinforcement 5 | . 1 . . . . . . . . . . . . . . . . . . 1 . 1 . . 1 . . 1 . . . . Assault . | . . . . . . . . . . . . . . . . . . . . . . . . . . . . . . . . . Garrison 1 | . . . . . . . . . . . . . . . . . . . . . . . . . 1 . . . . . . . Intercept . | . . . . . . . . . . . . . . . . . . . . . . . . . . . . . . . . . Searches Triggered . | . . . . . . . . . . . . . . . . . . . . . . . . . . . . . . . . . Construction Impeded 1 | . . . . . . . . . . . . . . . . . . . . . . 1 . . . . . . . . . . Haulers Reinforced . | . . . . . . . . . . . . . . . . . . . . . . . . . . . . . . . . . Active Scanning Responses . | . . . . . . . . . . . . . . . . . . . . . . . . . . . . . . . . . Cargo Convoy Interrupts . | . . . . . . . . . . . . . . . . . . . . . . . . . . . . . . . . . Alert ID Control Effect 3 | . . . . . . . . . . . . . . . . . . 1 . . . 2 . . . . . . . . . . Stealth | -11 -10 -10 -10 -9 -8 -8 -8 -8 -7 -7 -7 -7 -6 -6 -6 -6 -6 -5 -5 -4 -4 -4 -4 -4 -4 -4 -3 -3 -2 -2 -1 -1 --------- Run | Yrd Mat Min Exi Min Mat Gar Mat Gar Fac Low Low Dat Pro Fac Gar Fac Gar Fac Gar Fac Gar Ext Cet Arc Hub Gar Res Qua Res Gar Acc Com Distress Signals 8 | . 1 . . . 1 . 1 . . . . . . 2 . . . . . . . 2 1 . . . . . . . . . Communications Jammed 34 | . . . . . . . . . . . . . . . . . . . . 5 . 1 26 . . . 1 1 . . . . Distress Signals 34 | . . . . . . . . . . . . . . . . . . . . 5 . 1 26 . . . 1 1 . . . . Times Spotted 304 | . 30 . . 7 21 30 13 9 17 . 4 4 4 2 8 9 21 17 2 11 11 21 6 6 . 13 9 8 . 11 7 3 Peak Tracking Total 15 | . 7 . . 7 10 11 5 12 6 . 4 4 4 1 8 3 8 11 2 11 15 4 5 2 . 6 10 7 . 10 6 2 Tactical Retreats 36 | . 6 . . . 5 2 2 1 6 . 1 . . . . 2 3 . . 1 . . . . . 1 1 1 . 2 1 1 Traps | -11 -10 -10 -10 -9 -8 -8 -8 -8 -7 -7 -7 -7 -6 -6 -6 -6 -6 -5 -5 -4 -4 -4 -4 -4 -4 -4 -3 -3 -2 -2 -1 -1 ------- Run | Yrd Mat Min Exi Min Mat Gar Mat Gar Fac Low Low Dat Pro Fac Gar Fac Gar Fac Gar Fac Gar Ext Cet Arc Hub Gar Res Qua Res Gar Acc Com Traps Triggered 24 | . 2 . . . . 5 . . 4 . . . . . 1 . 2 . 1 . 3 1 . . 1 . . . . 3 1 . Indirectly . | . . . . . . . . . . . . . . . . . . . . . . . . . . . . . . . . . Trap Hack Attempts . | . . . . . . . . . . . . . . . . . . . . . . . . . . . . . . . . . Triggered . | . . . . . . . . . . . . . . . . . . . . . . . . . . . . . . . . . Disarmed . | . . . . . . . . . . . . . . . . . . . . . . . . . . . . . . . . . Reprogrammed . | . . . . . . . . . . . . . . . . . . . . . . . . . . . . . . . . . Reused . | . . . . . . . . . . . . . . . . . . . . . . . . . . . . . . . . . Traps Extracted . | . . . . . . . . . . . . . . . . . . . . . . . . . . . . . . . . . Installed . | . . . . . . . . . . . . . . . . . . . . . . . . . . . . . . . . . Triggered . | . . . . . . . . . . . . . . . . . . . . . . . . . . . . . . . . . Machines | -11 -10 -10 -10 -9 -8 -8 -8 -8 -7 -7 -7 -7 -6 -6 -6 -6 -6 -5 -5 -4 -4 -4 -4 -4 -4 -4 -3 -3 -2 -2 -1 -1 ---------- Run | Yrd Mat Min Exi Min Mat Gar Mat Gar Fac Low Low Dat Pro Fac Gar Fac Gar Fac Gar Fac Gar Ext Cet Arc Hub Gar Res Qua Res Gar Acc Com Machines Disabled 22 | . . . . . . 4 . . 1 . . . . . 1 1 2 . . . 1 . . 2 4 1 1 3 . . 1 . Max in Single Turn 1 | . . . . . . 1 . . 1 . . . . . 1 1 1 . . . 1 . . . 1 1 1 1 . . 1 . Garrison Access 6 | . . . . . . . . . 2 . . . . 1 . . . 1 . . . . . . . . . . . . 2 . Garrison Relay 8 | . . . . . . 3 . . . . . . . . 1 . 2 . . . 1 . . . . 1 . . . . . . Network Hub 2 | . . . . . . . . . . . . . . . . . . . . . . . . . 2 . . . . . . . Machines Repaired . | . . . . . . . . . . . . . . . . . . . . . . . . . . . . . . . . . Machines Dismantled . | . . . . . . . . . . . . . . . . . . . . . . . . . . . . . . . . . Machines Sabotaged 2 | . . . . . . . . . . . . . . . . . . . . . . . . . 2 . . . . . . . Overloaded Fab Kills . | . . . . . . . . . . . . . . . . . . . . . . . . . . . . . . . . . Hacking | -11 -10 -10 -10 -9 -8 -8 -8 -8 -7 -7 -7 -7 -6 -6 -6 -6 -6 -5 -5 -4 -4 -4 -4 -4 -4 -4 -3 -3 -2 -2 -1 -1 --------- Run | Yrd Mat Min Exi Min Mat Gar Mat Gar Fac Low Low Dat Pro Fac Gar Fac Gar Fac Gar Fac Gar Ext Cet Arc Hub Gar Res Qua Res Gar Acc Com Machines Accessed 116 | . 7 . 1 . 10 1 6 1 21 . . 4 . 8 1 5 . 4 1 8 1 14 1 . 5 1 3 2 2 . 7 2 Terminals 79 | . 7 . . . 8 1 5 1 14 . . . . 5 1 3 . 1 1 5 1 12 1 . 4 1 2 2 . . 4 . Fabricators 7 | . . . . . . . . . 2 . . . . 1 . . . 1 . 1 . . . . . . 1 . . . 1 . Repair Stations 7 | . . . . . . . . . 1 . . . . . . 1 . . . 1 . 1 . . . . . . 1 . . 2 Recycling Units 1 | . . . . . . . . . . . . . . . . . . . . . . 1 . . . . . . . . . . Scanalyzers 3 | . . . . . 1 . . . 2 . . . . . . . . . . . . . . . . . . . . . . . Garrison Access 14 | . . . . . 1 . 1 . 2 . . . . 2 . 1 . 2 . 1 . . . . 1 . . . 1 . 2 . Total Hacks 367 | . 20 . 1 . 36 4 24 1 72 . . 28 . 36 4 15 . 9 1 23 1 36 2 . 10 4 9 6 8 . 13 4 Successful 222 | . 14 . 1 . 24 1 16 . 40 . . 28 . 22 1 9 . 6 1 9 1 24 1 . 6 2 5 . 4 . 5 2 Failed 144 | . 6 . . . 11 3 8 1 32 . . . . 14 3 6 . 3 . 14 . 12 1 . 4 2 4 6 4 . 8 2 Catastrophic 14 | . . . . . . 1 . 1 2 . . . . . 1 2 . . . 4 . . . . . . 1 1 1 . . . Database Lockouts 1 | . . . . . 1 . . . . . . . . . . . . . . . . . . . . . . . . . . . Manual 221 | . 19 . . . 29 . 18 . 52 . . . . 17 3 11 . 3 . 19 . 17 2 . 9 1 2 6 7 . 2 4 Terminals 244 | . 20 . . . 31 4 21 1 52 . . . . 30 4 9 . 2 1 14 1 25 2 . 7 4 3 6 . . 7 . Fabricators 31 | . . . . . . . . . 9 . . . . 3 . . . 5 . 4 . . . . . . 6 . . . 4 . Repair Stations 23 | . . . . . . . . . 1 . . . . . . 4 . . . 2 . 9 . . . . . . 3 . . 4 Recycling Units 2 | . . . . . . . . . . . . . . . . . . . . . . 2 . . . . . . . . . . Scanalyzers 10 | . . . . . 2 . . . 8 . . . . . . . . . . . . . . . . . . . . . . . Garrison Access 28 | . . . . . 3 . 3 . 2 . . . . 3 . 2 . 2 . 3 . . . . 3 . . . 5 . 2 . Terminal Hacks 87 | . 3 . 1 . 9 1 5 . 11 . . 28 . 8 1 2 . . 1 . 1 9 1 . . 2 1 . . . 3 . Record 13 | . . . 1 . . . . . . . . 11 . 1 . . . . . . . . . . . . . . . . . . Part Schematic 14 | . . . . . 1 . . . 3 . . 10 . . . . . . . . . . . . . . . . . . . . Robot Schematic 4 | . . . . . . . . . . . . 4 . . . . . . . . . . . . . . . . . . . . Robot Analysis 3 | . 1 . . . 2 . . . . . . . . . . . . . . . . . . . . . . . . . . . Prototype ID Bank 9 | . . . . . 1 . . . 1 . . 3 . 2 . 1 . . . . . 1 . . . . . . . . . . Open Door 13 | . . . . . . . . . . . . . . . . . . . . . 1 7 1 . . . 1 . . . 3 . Emergency Access Points 4 | . . . . . . 1 . . . . . . . 1 1 . . . 1 . . . . . . . . . . . . . Terminal Index 4 | . 1 . . . 1 . 1 . 1 . . . . . . . . . . . . . . . . . . . . . . . Unreport Threat 4 | . . . . . . . 3 . . . . . . 1 . . . . . . . . . . . . . . . . . . Registered Components 3 | . . . . . 1 . . . 1 . . . . 1 . . . . . . . . . . . . . . . . . . Registered Prototypes 2 | . . . . . . . . . 1 . . . . 1 . . . . . . . . . . . . . . . . . . Zone Layout 12 | . 1 . . . 3 . 1 . 4 . . . . 1 . 1 . . . . . 1 . . . . . . . . . . Garrison Registry 1 | . . . . . . . . . . . . . . . . . . . . . . . . . . 1 . . . . . . Patrol Navigation 1 | . . . . . . . . . . . . . . . . . . . . . . . . . . 1 . . . . . . Fabricator Hacks 12 | . . . . . . . . . 2 . . . . 2 . . . 3 . 1 . . . . . . 4 . . . . . Load Schematic 8 | . . . . . . . . . 2 . . . . 1 . . . 2 . 1 . . . . . . 2 . . . . . Build 4 | . . . . . . . . . . . . . . 1 . . . 1 . . . . . . . . 2 . . . . . Repair Station Hacks 8 | . . . . . . . . . . . . . . . . 2 . . . . . 6 . . . . . . . . . . Scan Component 4 | . . . . . . . . . . . . . . . . 1 . . . . . 3 . . . . . . . . . . Repair 4 | . . . . . . . . . . . . . . . . 1 . . . . . 3 . . . . . . . . . . Recycling Unit Hacks . | . . . . . . . . . . . . . . . . . . . . . . . . . . . . . . . . . Scanalyzer 5 | . . . . . 2 . . . 3 . . . . . . . . . . . . . . . . . . . . . . . Insert Component 3 | . . . . . 1 . . . 2 . . . . . . . . . . . . . . . . . . . . . . . Analyze 2 | . . . . . 1 . . . 1 . . . . . . . . . . . . . . . . . . . . . . . Garrison Access Hacks 14 | . . . . . 1 . 1 . 2 . . . . 2 . 1 . 2 . 1 . . . . 1 . . . 1 . 2 . Unlock Access 8 | . . . . . 1 . 1 . . . . . . 1 . 1 . 1 . 1 . . . . 1 . . . 1 . . . Seal Access 6 | . . . . . . . . . 2 . . . . 1 . . . 1 . . . . . . . . . . . . 2 . Unauthorized Hacks 96 | . 11 . . . 12 . 10 . 22 . . . . 10 . 4 . 1 . 7 . 9 . . 5 . . . 3 . . 2 Terminals 78 | . 11 . . . 12 . 10 . 18 . . . . 9 . 2 . 1 . 4 . 7 . . 4 . . . . . . . Track 2 | . . . . . 1 . . . . . . . . 1 . . . . . . . . . . . . . . . . . . Assimilate 6 | . 2 . . . . . . . 1 . . . . 2 . 1 . . . . . . . . . . . . . . . . Botnet 34 | . 3 . . . 4 . 4 . 11 . . . . 4 . 1 . 1 . 4 . 2 . . . . . . . . . . Disrupt 3 | . . . . . 2 . 1 . . . . . . . . . . . . . . . . . . . . . . . . . Operators 1 | . . . . . . . . . 1 . . . . . . . . . . . . . . . . . . . . . . . Skim 28 | . 6 . . . 5 . 5 . 5 . . . . 2 . . . . . . . 5 . . . . . . . . . . Sabotage 4 | . . . . . . . . . . . . . . . . . . . . . . . . . 4 . . . . . . . Fabricators 2 | . . . . . . . . . 2 . . . . . . . . . . . . . . . . . . . . . . . Recompile 2 | . . . . . . . . . 2 . . . . . . . . . . . . . . . . . . . . . . . Repair Stations 9 | . . . . . . . . . 1 . . . . . . 1 . . . 2 . 1 . . . . . . 2 . . 2 Mechanics 3 | . . . . . . . . . . . . . . . . . . . . 1 . 1 . . . . . . 1 . . . Patch 6 | . . . . . . . . . 1 . . . . . . 1 . . . 1 . . . . . . . . 1 . . 2 Recycling Units 1 | . . . . . . . . . . . . . . . . . . . . . . 1 . . . . . . . . . . Recyclers 1 | . . . . . . . . . . . . . . . . . . . . . . 1 . . . . . . . . . . Scanalyzers 1 | . . . . . . . . . 1 . . . . . . . . . . . . . . . . . . . . . . . Extract 1 | . . . . . . . . . 1 . . . . . . . . . . . . . . . . . . . . . . . Garrison Access 5 | . . . . . . . . . . . . . . 1 . 1 . . . 1 . . . . 1 . . . 1 . . . Reprogram 5 | . . . . . . . . . . . . . . 1 . 1 . . . 1 . . . . 1 . . . 1 . . . Data Cores Recovered 3 | . . . . . . . 1 . . . . . . . . . . . . . . 2 . . . . . . . . . . Used . | . . . . . . . . . . . . . . . . . . . . . . . . . . . . . . . . . Hacking Detections 82 | . 6 . . . 9 1 6 1 17 . . . . 6 1 4 . 3 . 7 1 7 2 . 2 . 2 2 1 . 3 1 Full Trace Events 6 | . 1 . . . . . . . . . . . . 1 . . . 1 . 1 . 1 . . . . 1 . . . . . Feedback Events 1 | . . . . . . . . . . . . . . . . . . 1 . . . . . . . . . . . . . . Corruption 1 | . . . . . . . . . . . . . . . . . . 1 . . . . . . . . . . . . . . Feedback Blocked . | . . . . . . . . . . . . . . . . . . . . . . . . . . . . . . . . . Robot Schematics Acquired 4 | . . . . . . . . . . . . 4 . . . . . . . . . . . . . . . . . . . . Robots Built . | . . . . . . . . . . . . . . . . . . . . . . . . . . . . . . . . . Authchips . | . . . . . . . . . . . . . . . . . . . . . . . . . . . . . . . . . Time . | . . . . . . . . . . . . . . . . . . . . . . . . . . . . . . . . . Total Robot Build Rating . | . . . . . . . . . . . . . . . . . . . . . . . . . . . . . . . . . Part Schematics Acquired 22 | . . . . . 2 . . . 10 . . 10 . . . . . . . . . . . . . . . . . . . . Parts Built 7 | . . . . . . . . . . . . . . 2 . . . 2 . . . . . . . . 3 . . . . . Authchips 2 | . . . . . . . . . . . . . . . . . . 1 . . . . . . . . 1 . . . . . Time 140 | . . . . . . . . . . . . . . 47 . . . 31 . . . . . . . . 62 . . . . . Total Part Build Rating 35 | . . . . . . . . . . . . . . 10 . . . 10 . . . . . . . . 15 . . . . . Parts Repaired 4 | . . . . . . . . . . . . . . . . 1 . . . . . 3 . . . . . . . . . . Time 235 | . . . . . . . . . . . . . . . . 35 . . . . . 200 . . . . . . . . . . Parts Recycled . | . . . . . . . . . . . . . . . . . . . . . . . . . . . . . . . . . Recycled Matter . | . . . . . . . . . . . . . . . . . . . . . . . . . . . . . . . . . Retrieved Matter . | . . . . . . . . . . . . . . . . . . . . . . . . . . . . . . . . . Retrieved Components . | . . . . . . . . . . . . . . . . . . . . . . . . . . . . . . . . . Parts Scanalyzed 3 | . . . . . 1 . . . 2 . . . . . . . . . . . . . . . . . . . . . . . Part Schematics Acquired 2 | . . . . . 1 . . . 1 . . . . . . . . . . . . . . . . . . . . . . . Parts Damaged . | . . . . . . . . . . . . . . . . . . . . . . . . . . . . . . . . . Bothacking | -11 -10 -10 -10 -9 -8 -8 -8 -8 -7 -7 -7 -7 -6 -6 -6 -6 -6 -5 -5 -4 -4 -4 -4 -4 -4 -4 -3 -3 -2 -2 -1 -1 ------------ Run | Yrd Mat Min Exi Min Mat Gar Mat Gar Fac Low Low Dat Pro Fac Gar Fac Gar Fac Gar Fac Gar Ext Cet Arc Hub Gar Res Qua Res Gar Acc Com Used RIF Installer 8 | . . . . . . 1 . 1 . . . . . . 1 . 1 . 1 . 1 . . . . 1 . . . 1 . . Command Fork 1 | . . . . . . . . . . . . . . . . . . . . . . . . . . 1 . . . . . . Threat Obfuscator 1 | . . . . . . . . . . . . . . . . . . . . . . . . . . . . . . 1 . . Signal Jammer 1 | . . . . . . . . . . . . . . . 1 . . . . . . . . . . . . . . . . . Robot Detection 1 | . . . . . . . . . . . . . . . . . . . . . 1 . . . . . . . . . . . Watcher Feeds 1 | . . . . . . . . 1 . . . . . . . . . . . . . . . . . . . . . . . . Alert ID Control 1 | . . . . . . . . . . . . . . . . . 1 . . . . . . . . . . . . . . . Autoassimilate 1 | . . . . . . . . . . . . . . . . . . . 1 . . . . . . . . . . . . . Robots Hacked 17 | . . . 5 . . . 2 . . . . . . . . . 1 1 . . . 4 . . . 2 . . . . . 2 Non-combat 6 | . . . 3 . . . . . . . . . . . . . . . . . . 2 . . . . . . . . . 1 Combat 10 | . . . 2 . . . 2 . . . . . . . . . 1 1 . . . 2 . . . 2 . . . . . . Robot Hacks Applied 16 | . . . 5 . . . 2 . . . . . . . . . 1 1 . . . 4 . . . 2 . . . . . 1 parse_system 5 | . . . 5 . . . . . . . . . . . . . . . . . . . . . . . . . . . . . ignore_repairs 2 | . . . . . . . . . . . . . . . . . . . . . . 2 . . . . . . . . . . overwrite_iff 3 | . . . . . . . 1 . . . . . . . . . . . . . . . . . . 2 . . . . . . formatsys_high 6 | . . . . . . . 1 . . . . . . . . . 1 1 . . . 2 . . . . . . . . . 1 Manual 1 | . . . . . . . . . . . . . . . . . . . . . . . . . . . . . . . . 1 Relay Couplers Released 33 | . . . . . . 12 . . . . . . . . 5 . 8 . . . 3 . . . . 5 . . . . . . Machine Destruction 33 | . . . . . . 12 . . . . . . . . 5 . 8 . . . 3 . . . . 5 . . . . . . Attached 7 | . . . . . . . 1 . . . . . . . 1 1 1 1 . . . 1 . . . 1 . . . . . . Fabnet Peak Effective % . | . . . . . . . . . . . . . . . . . . . . . . . . . . . . . . . . . Robots Rewired 19 | . . . . . . . . . 1 . . . . . . . . . . . . 18 . . . . . . . . . . Allies Hacked 3 | . . . . . . . . . . . . . . . . . 1 . . . . 2 . . . . . . . . . . Hacks Repelled . | . . . . . . . . . . . . . . . . . . . . . . . . . . . . . . . . . Allies | -11 -10 -10 -10 -9 -8 -8 -8 -8 -7 -7 -7 -7 -6 -6 -6 -6 -6 -5 -5 -4 -4 -4 -4 -4 -4 -4 -3 -3 -2 -2 -1 -1 -------- Run | Yrd Mat Min Exi Min Mat Gar Mat Gar Fac Low Low Dat Pro Fac Gar Fac Gar Fac Gar Fac Gar Ext Cet Arc Hub Gar Res Qua Res Gar Acc Com Total Allies 58 | . 1 . . . . . 2 . 2 . . . . 2 . 1 1 1 . 4 . 30 5 . 2 2 . . 4 . . 1 Largest Group 25 | . 1 . . . . . 1 . 1 . . . . 2 . 1 1 1 . 4 4 22 25 22 18 3 . . . 4 . 1 Highest-Rated Group 1482 | . 10 . . . . . 16 . 32 . . . . 20 . 26 29 47 . 188 188 1101 1482 1279 964 112 . . . 232 . 45 Highest-Rated Ally 159 | . 10 . . . . . 16 . 32 . . . . 10 . 26 29 47 . 47 47 159 152 135 96 56 . . . 58 . 45 Total Orders 6 | . 2 . . . . . . . . . . . . . . . . . . . . . . 3 . . . . . . . 1 STAY 3 | . 1 . . . . . . . . . . . . . . . . . . . . . . 1 . . . . . . . 1 ROAM 1 | . . . . . . . . . . . . . . . . . . . . . . . . 1 . . . . . . . . FOLLOW 2 | . 1 . . . . . . . . . . . . . . . . . . . . . . 1 . . . . . . . . Ally Attacks 322 | . . . . . . . 7 . 2 . . . . . . . 1 6 . . 9 108 52 34 68 12 . . . 23 . . Total Damage 8104 | . . . . . . . 78 . 44 . . . . . . . 25 196 . . 279 3171 1393 841 1295 350 . . . 432 . . Kills 51 | . . . . . . . 1 . . . . . . . . . . 2 . . . 21 9 5 8 1 . . . 4 . . Allies Corrupted 1 | . . . . . . . 1 . . . . . . . . . . . . . . . . . . . . . . . . . Allies Melted . | . . . . . . . . . . . . . . . . . . . . . . . . . . . . . . . . . Intel | -11 -10 -10 -10 -9 -8 -8 -8 -8 -7 -7 -7 -7 -6 -6 -6 -6 -6 -5 -5 -4 -4 -4 -4 -4 -4 -4 -3 -3 -2 -2 -1 -1 ------- Run | Yrd Mat Min Exi Min Mat Gar Mat Gar Fac Low Low Dat Pro Fac Gar Fac Gar Fac Gar Fac Gar Ext Cet Arc Hub Gar Res Qua Res Gar Acc Com Active Infowar (turns) 2895 | . 693 37 90 12 232 4 79 . 249 56 137 75 91 191 . 158 1 148 1 51 . . . . 25 1 117 59 57 49 177 105 Optics 563 | . . . . . . . . . . . . . . . . . . . . . . . . . . . 116 59 57 49 177 105 Sensors 1539 | . . . . . . . 79 . . 53 137 75 91 189 . 158 1 148 1 51 . . . . 25 1 117 59 57 16 176 105 Structural 1830 | . 693 37 90 12 232 4 . . 249 56 137 38 91 191 . . . . . . . . . . . . . . . . . . Robot Analysis Total 154 | . 1 . . . 2 . . . . . . 151 . . . . . . . . . . . . . . . . . . . . Derelict Logs Recovered 3 | . . . . 2 . . . . . . . . 1 . . . . . . . . . . . . . . . . . . . Drone Launches . | . . . . . . . . . . . . . . . . . . . . . . . . . . . . . . . . . Drone Recoveries . | . . . . . . . . . . . . . . . . . . . . . . . . . . . . . . . . . Exploration | -11 -10 -10 -10 -9 -8 -8 -8 -8 -7 -7 -7 -7 -6 -6 -6 -6 -6 -5 -5 -4 -4 -4 -4 -4 -4 -4 -3 -3 -2 -2 -1 -1 ------------- Run | Yrd Mat Min Exi Min Mat Gar Mat Gar Fac Low Low Dat Pro Fac Gar Fac Gar Fac Gar Fac Gar Ext Cet Arc Hub Gar Res Qua Res Gar Acc Com Turns Passed 6812 | 37 1105 37 90 12 251 574 331 51 573 56 137 75 113 192 45 158 142 150 50 126 53 786 336 588 82 81 134 59 57 49 177 105 Spaces Moved 9857 | 39 1006 94 218 32 432 605 303 134 1423 166 267 98 235 305 151 264 328 298 134 351 154 644 269 312 230 223 225 161 60 162 362 172 Core 79 | 39 40 . . . . . . . . . . . . . . . . . . . . . . . . . . . . . . . Treads . | . . . . . . . . . . . . . . . . . . . . . . . . . . . . . . . . . Legs . | . . . . . . . . . . . . . . . . . . . . . . . . . . . . . . . . . Wheels . | . . . . . . . . . . . . . . . . . . . . . . . . . . . . . . . . . Hover . | . . . . . . . . . . . . . . . . . . . . . . . . . . . . . . . . . Flight 9778 | . 966 94 218 32 432 605 303 134 1423 166 267 98 235 305 151 264 328 298 134 351 154 644 269 312 230 223 225 161 60 162 362 172 Fastest Speed 7 | 50 37 37 37 37 29 28 29 29 23 23 23 23 23 20 20 20 20 20 20 17 14 13 13 17 13 8 11 17 14 7 10 8 Average Speed 24 | 50 37 37 37 37 31 37 29 29 24 23 23 25 24 24 20 20 21 21 20 17 15 15 16 17 16 14 16 17 14 12 13 13 Slowest Speed 175 | 50 50 37 37 37 104 175 104 29 27 23 26 26 26 26 20 20 26 23 20 17 17 79 17 17 17 20 17 17 17 16 73 14 Overloaded Moves 76 | . . . . . . . . . . . . . . . . . . . . . . . . . . 10 4 . . 47 . 15 Propulsion Burnouts 1 | . . . . . . . . . . . . . . . . . . . . . . . . . . . . . . 1 . . Robots Hopped 81 | . 6 3 . . 7 1 4 . 13 . . 1 . . . 4 5 3 . 7 . 5 . . 2 2 9 . . 4 4 1 Potential Cave-ins 13 | . . . . . . . . . . . . . . . . . . . . . . 8 . . . . . . . . . 5 Cave-ins Triggered 2 | . . . . . . . . . . . 1 . . 1 . . . . . . . . . . . . . . . . . . Exploration Rate (%) 39 | 3 98 32 66 10 65 68 22 29 45 42 54 77 53 12 43 10 54 18 41 17 35 73 67 98 15 39 13 38 5 45 13 12 Regions Visited 32 Branch Regions 13 Pre-discovered Areas 32 | . 1 . 1 . . . 3 . 2 . . 25 . . . . . . . . . . . . . . . . . . . . Known Exits Taken 20 | . . . . 1 1 . 1 . 1 1 1 1 1 1 . 1 . 1 . 1 . 1 1 1 1 . 1 1 1 . 1 . Unknown Exits Taken 4 | 1 1 1 1 . . . . . . . . . . . . . . . . . . . . . . . . . . . . . Scrap Searched 8 | . . . . 1 . . . . . 3 2 . 2 . . . . . . . . . . . . . . . . . . . Spaces Dug 195 | . 4 . . . 12 11 5 1 17 3 8 . 6 11 . 14 5 11 . 14 1 30 5 . 11 1 6 7 3 1 5 3 Terrain Destroyed 423 | . 4 . . . 12 82 5 1 17 3 8 . 6 11 . 14 95 11 . 14 1 30 5 . 11 68 6 7 3 1 5 3 Melee 165 | . 4 . . . 12 11 5 1 17 3 8 . 6 11 . 14 5 11 . 14 1 . 5 . 11 1 6 7 3 1 5 3 Projectile 30 | . . . . . . . . . . . . . . . . . . . . . . 30 . . . . . . . . . . AOE 228 | . . . . . . 71 . . . . . . . . . . 90 . . . . . . . . 67 . . . . . . Terrain Rammed . | . . . . . . . . . . . . . . . . . . . . . . . . . . . . . . . . . Walls Destroyed . | . . . . . . . . . . . . . . . . . . . . . . . . . . . . . . . . . Machines Disabled . | . . . . . . . . . . . . . . . . . . . . . . . . . . . . . . . . . Actions | -11 -10 -10 -10 -9 -8 -8 -8 -8 -7 -7 -7 -7 -6 -6 -6 -6 -6 -5 -5 -4 -4 -4 -4 -4 -4 -4 -3 -3 -2 -2 -1 -1 --------- Run | Yrd Mat Min Exi Min Mat Gar Mat Gar Fac Low Low Dat Pro Fac Gar Fac Gar Fac Gar Fac Gar Ext Cet Arc Hub Gar Res Qua Res Gar Acc Com Total 13584 | 46 1654 92 223 31 518 846 525 140 1595 178 326 138 281 404 160 340 374 360 155 384 178 1285 546 819 250 254 300 177 103 181 475 246 Wait 2967 | . 587 1 . . 59 77 187 4 88 7 51 36 41 77 2 57 28 38 20 16 17 532 264 483 5 17 64 2 35 13 95 64 Move 9674 | 38 993 89 217 31 418 602 294 133 1397 165 266 95 234 304 150 255 318 292 133 337 153 634 268 311 225 218 208 160 59 154 353 170 Hop 72 | . 6 1 . . 7 1 4 . 12 . . 1 . . . 4 4 3 . 6 . 4 . . 2 2 7 . . 3 4 1 Pick Up 70 | . 8 1 . . 8 4 6 . 11 . . . . 3 2 2 1 6 . 2 3 3 1 . . . 3 2 . . 4 . Fast Attach 63 | 4 10 . . . 3 7 2 . 9 . . . . 1 1 . 1 . . 2 . 6 1 3 3 1 4 1 1 1 2 . Attach 58 | . 2 . . . 5 9 4 . 3 1 1 1 . 1 . 1 3 3 1 3 2 2 . . . 1 4 . 3 2 5 1 Detach 17 | . 1 . . . . 1 3 . . . . . . 1 . . 1 . . 1 . 2 . 1 . . 1 1 1 2 . 1 Swap 59 | . 1 . 1 . 3 9 3 . 7 1 . . . 4 . 4 2 2 1 1 . 8 . . 1 4 . . . 2 2 3 Drop 66 | . 6 . . . 3 6 4 . 21 1 . . . 2 2 2 . 2 . . 1 2 2 3 1 . 2 1 1 1 3 . Fire 102 | 4 34 . . . . 16 . . . . . . . . . . 8 1 . . . 30 . . . 7 . . . . . 2 Melee 336 | . 6 . 5 . 12 48 17 3 29 3 8 5 6 11 3 15 7 13 . 16 2 49 10 18 13 4 7 10 3 3 7 3 Ram . | . . . . . . . . . . . . . . . . . . . . . . . . . . . . . . . . . Kick . | . . . . . . . . . . . . . . . . . . . . . . . . . . . . . . . . . Crush . | . . . . . . . . . . . . . . . . . . . . . . . . . . . . . . . . . Escape Stasis 93 | . . . . . . 66 . . 18 . . . . . . . . . . . . 9 . . . . . . . . . . Rewire 7 | . . . . . . . 1 . . . . . . . . . 1 . . . . 4 . . . . . . . . . 1 Trap . | . . . . . . . . . . . . . . . . . . . . . . . . . . . . . . . . . Miscellaneous . | . . . . . . . . . . . . . . . . . . . . . . . . . . . . . . . . . Route ------- -11/Scrapyard -10/Materials (discovered 6 exits: *Mat x3 / [*Min x2] / Sub) -10/Mines (discovered 3 exits: *Mat x2 / *Exi) -10/Exiles -9/Mines (discovered 2 exits: *Mat x2) -8/Materials (discovered 3 exits: *Fac x2 / Gar) -8/Garrison (discovered 2 exits: *Mat x2) -8/Materials (discovered 4 exits: Fac x3 / Gar) -8/Garrison -7/Factory (discovered 8 exits: *Fac x4 / Sto x2 / *Low x2) -7/Lower Caves -7/Lower Caves (discovered 2 exits: *Fac / *Dat) -7/Data Miner -6/Proximity Caves -6/Factory (discovered 2 exits: *Fac / Gar) -6/Garrison -6/Factory -6/Garrison (discovered 2 exits: *Fac x2) -5/Factory (discovered 2 exits: *Upp / Gar) -5/Garrison -4/Factory (discovered 2 exits: *Res / Gar) -4/Garrison -4/Extension (discovered 2 exits: *Res / *Cet) -4/Cetus (discovered 2 exits: *Res / *Arc) -4/Archives (discovered 3 exits: *Res / *Hub x2) -4/Hub_04(d) (discovered 2 exits: Res / Gar) -4/Garrison (discovered 3 exits: *Res x3) -3/Research (discovered 2 exits: *Res / *Qua) -3/Quarantine -2/Research -2/Garrison -1/Access -1/Command 0b10 Command History --------- Turn | Location | Event 8 | -11/Scrapyard | Discovered new exit (range 16) 38 | -11/Scrapyard | Entered Materials 213 | -10/Materials | Discovered new exit (range 9) 312 | -10/Materials | Build established: Mutant 358 | -10/Materials | Discovered new exit (range 11) 444 | -10/Materials | Discovered new exit (range 14) 463 | -10/Materials | Discovered new exit (range 15) 563 | -10/Materials | Identified exit to Materials 639 | -10/Materials | Learned Storage trap positions 703 | -10/Materials | Identified exit to Subcaves 757 | -10/Materials | Learned Storage emergency access door positions 799 | -10/Materials | Learned location of 2 exits from Subcaves 854 | -10/Materials | Learned location of 2 exits from Subcaves 889 | -10/Materials | Learned 2 Storage zone layouts 993 | -10/Materials | Learned 2 Storage zone layouts 1061 | -10/Materials | Learned location of Recycling (-7) 1143 | -10/Materials | Entered Mines 1147 | -10/Mines | Met a Derelict bent on vengeance 1153 | -10/Mines | Found a damaged Exp. Sensor Array with a note attached 1155 | -10/Mines | Found Prototype Device 1178 | -10/Mines | Deemed a non-threat by the Exiles lab entrance 1178 | -10/Mines | Discovered new exit (range 5) 1180 | -10/Mines | Entered Exiles 1191 | -10/Exiles | Met 8R-AWN 1199 | -10/Exiles | Met EX-HEX 1211 | -10/Exiles | Met EX-BIN 1233 | -10/Exiles | Met EX-DEC 1235 | -10/Exiles | Learned location of Zion (-6) 1266 | -10/Exiles | Discovered new exit (range 14) 1270 | -10/Exiles | Entered Mines 1271 | -9/Mines | Identified exit to Materials 1276 | -9/Mines | Learned location of 1 exit from Materials 1282 | -9/Mines | Entered Materials 1282 | -8/Materials | Evolved 4 slots: Propulsion x2, Utility x2 1283 | -8/Materials | Identified exit to Factory 1321 | -8/Materials | Identified Exp. Sensor Array 1470 | -8/Materials | Discovered exit to Factory (range 8) 1520 | -8/Materials | Central database locked down 1533 | -8/Materials | Identified exit to Garrison 1533 | -8/Materials | Entered Garrison 1551 | -8/Garrison | Triggered checkpoint 1670 | -8/Garrison | Build established: Sprinter 1685 | -8/Garrison | Triggered checkpoint 1702 | -8/Garrison | Garrison Relay disabled 1752 | -8/Garrison | Lost 3 parts (1p1n1u) 1794 | -8/Garrison | Triggered checkpoint 1909 | -8/Garrison | Discovered new exit (range 7) 1916 | -8/Garrison | Garrison Relay disabled 1929 | -8/Garrison | Triggered checkpoint 1983 | -8/Garrison | Garrison Relay disabled 2022 | -8/Garrison | Lost 4 parts (3n1w) 2051 | -8/Garrison | Triggered checkpoint 2052 | -8/Garrison | Triggered checkpoint 2068 | -8/Garrison | Core integrity fell below 50% 2098 | -8/Garrison | Lost 5 parts (2n2u1w) 2098 | -8/Garrison | Installed Relay Interface Framework 2106 | -8/Garrison | Discovered new exit (range 3) 2107 | -8/Garrison | Entered Materials 2261 | -8/Materials | Identified exit to Garrison 2316 | -8/Materials | Learned 4 Lower Caves zone layouts 2360 | -8/Materials | Learned location of 1 exit from Lower Caves 2392 | -8/Materials | Learned location of Storage (-7) 2430 | -8/Materials | Learned Factory scanalyzer intel 2438 | -8/Materials | Entered Garrison 2447 | -8/Garrison | Expanded RIF knowledge: Watcher Feeds 2474 | -8/Garrison | Triggered checkpoint 2476 | -8/Garrison | Triggered checkpoint 2486 | -8/Garrison | Discovered exit to Factory (range 10) 2489 | -8/Garrison | Entered Factory 2489 | -7/Factory | Evolved 2 slots: Propulsion x1, Utility x1 2490 | -7/Factory | Identified exit to Storage 2491 | -7/Factory | Loaded intel: 4 scanalyzer locations 2566 | -7/Factory | Discovered new exit (range 4) 2571 | -7/Factory | Discovered new exit (range 4) 2575 | -7/Factory | Discovered new exit (range 5) 2614 | -7/Factory | Identified exit to Factory 2629 | -7/Factory | Identified exit to Lower Caves 2701 | -7/Factory | Discovered exit to Lower Caves (range 6) 2738 | -7/Factory | Discovered exit to Factory (range 15) 2806 | -7/Factory | Build established: Hacker-Sprinter 2953 | -7/Factory | Learned 4 Proximity Caves zone layouts 2993 | -7/Factory | Learned 2 Proximity Caves zone layouts 2994 | -7/Factory | Learned 4 Extension zone layouts 3000 | -7/Factory | Learned location of 1 exit from Upper Caves 3043 | -7/Factory | Learned location of 1 exit from Hub_04(d) 3062 | -7/Factory | Entered Lower Caves 3063 | -7/Lower Caves | Identified exit to Lower Caves 3118 | -7/Lower Caves | Entered another Lower Caves area 3165 | -7/Lower Caves | Discovered exit to Factory (range 3) 3235 | -7/Lower Caves | Crushed by falling debris 3242 | -7/Lower Caves | Encountered a Warlord checkpoint 3243 | -7/Lower Caves | Discovered new exit (range 12) 3251 | -7/Lower Caves | Identified exit to Data Miner 3255 | -7/Lower Caves | Entered Data Miner 3255 | -7/Data Miner | Discovered new exit (range 7) 3260 | -7/Data Miner | Met Data Miner 3265 | -7/Data Miner | Learned location of Section 7 (-2) 3265 | -7/Data Miner | Acquired the access code to Warlord's prototype stash 3270 | -7/Data Miner | Received God Mode back door access code from Data Miner 3301 | -7/Data Miner | Interfaced with the Data Conduit 3329 | -7/Data Miner | Identified exit to Proximity Caves 3330 | -7/Data Miner | Entered Proximity Caves 3359 | -6/Proximity Caves | Learned Factory terminal intel 3436 | -6/Proximity Caves | Spotter reported a threat 3443 | -6/Proximity Caves | Entered Factory 3443 | -6/Factory | Evolved 2 slots: Propulsion x1, Utility x1 3444 | -6/Factory | Loaded intel: 309 machine locations 3445 | -6/Factory | Loaded intel: 26 terminal locations 3597 | -6/Factory | Fabricated Stasis Canceller (x2) 3610 | -6/Factory | Crushed by falling debris 3618 | -6/Factory | Discovered new exit (range 12) 3629 | -6/Factory | Identified exit to Garrison 3635 | -6/Factory | Entered Garrison 3636 | -6/Garrison | Loaded intel: 28 machine locations 3648 | -6/Garrison | Garrison Relay disabled 3669 | -6/Garrison | Triggered checkpoint 3674 | -6/Garrison | Discovered new exit (range 9) 3676 | -6/Garrison | Expanded RIF knowledge: Signal Jamming 3679 | -6/Garrison | Identified exit to Factory 3680 | -6/Garrison | Entered Factory 3681 | -6/Factory | Loaded intel: 294 machine locations 3797 | -6/Factory | Repaired Imp. Cesium-ion Thruster 3833 | -6/Factory | Identified exit to Garrison 3838 | -6/Factory | Entered Garrison 3839 | -6/Garrison | Loaded intel: 34 machine locations 3850 | -6/Garrison | Triggered checkpoint 3852 | -6/Garrison | Expanded RIF knowledge: Alert ID Control 3886 | -6/Garrison | Triggered checkpoint 3899 | -6/Garrison | Discovered new exit (range 10) 3914 | -6/Garrison | Garrison Relay disabled 3928 | -6/Garrison | Destroyed 8 combat bots 3950 | -6/Garrison | Triggered checkpoint 3952 | -6/Garrison | Garrison Relay disabled 3972 | -6/Garrison | Discovered new exit (range 12) 3974 | -6/Garrison | Identified exit to Factory 3980 | -6/Garrison | Entered Factory 3980 | -5/Factory | Evolved 2 slots: Propulsion x1, Utility x1 3981 | -5/Factory | Loaded intel: 308 machine locations 4043 | -5/Factory | Discovered new exit (range 10) 4050 | -5/Factory | Identified exit to Upper Caves 4115 | -5/Factory | Fabricated Imp. Surge Thruster (x2) 4130 | -5/Factory | Identified exit to Garrison 4130 | -5/Factory | Entered Garrison 4131 | -5/Garrison | Loaded intel: 36 machine locations 4153 | -5/Garrison | Expanded RIF knowledge: Autoassimilate 4166 | -5/Garrison | Triggered checkpoint 4166 | -5/Garrison | Spotted B-75 Beast 4168 | -5/Garrison | Triggered checkpoint 4178 | -5/Garrison | Discovered new exit (range 10) 4179 | -5/Garrison | Identified exit to Factory 4180 | -5/Garrison | Entered Factory 4180 | -4/Factory | Evolved 2 slots: Power x1, Propulsion x1 4181 | -4/Factory | Loaded intel: 244 machine locations 4198 | -4/Factory | Found Exp. System Shield 4285 | -4/Factory | Discovered new exit (range 15) 4302 | -4/Factory | Identified exit to Garrison 4306 | -4/Factory | Entered Garrison 4306 | -4/Garrison | Accompanied by 4 allies 4307 | -4/Garrison | Loaded intel: 40 machine locations 4338 | -4/Garrison | Garrison Relay disabled 4340 | -4/Garrison | Rescued a captive Derelict 4351 | -4/Garrison | Spotted B-86 Titan 4352 | -4/Garrison | Triggered checkpoint 4355 | -4/Garrison | Discovered new exit (range 8) 4356 | -4/Garrison | Expanded RIF knowledge: Robot Detection 4359 | -4/Garrison | Identified exit to Extension 4359 | -4/Garrison | Entered Extension 4360 | -4/Extension | Identified exit to Research 4360 | -4/Extension | Identified exit to Cetus 4361 | -4/Extension | Loaded intel: 35 machine locations 4371 | -4/Extension | Lost 5 allies 4452 | -4/Extension | Repaired Imp. Cesium-ion Thruster 4533 | -4/Extension | Repaired Cld. Cesium-ion Thruster 4585 | -4/Extension | Repaired Power Sword 4608 | -4/Extension | Rescued a captive Derelict 4611 | -4/Extension | Rescued a captive Derelict 4624 | -4/Extension | Rescued A7 4650 | -4/Extension | Rescued a captive Derelict 4657 | -4/Extension | Rescued a captive Derelict 4658 | -4/Extension | Rescued a captive Derelict 4661 | -4/Extension | Build established: Bothacker-Sprinter 4679 | -4/Extension | Rescued a captive Derelict 4679 | -4/Extension | Rescued a captive Derelict 4839 | -4/Extension | Rescued a captive Derelict 4920 | -4/Extension | P-70 Sage assimilated allied X5-LZD(g) 4946 | -4/Extension | Rescued a captive Derelict 4967 | -4/Extension | Learned location of 1 exit from Testing 5045 | -4/Extension | Learned Research trap positions 5114 | -4/Extension | Learned Armory interactive machine intel 5145 | -4/Extension | Entered Cetus 5145 | -4/Cetus | Accompanied by 22 allies (A7) 5146 | -4/Cetus | Loaded intel: 24 machine locations 5150 | -4/Cetus | Acquired a Cetus Manufacturing Module code from A7 5159 | -4/Cetus | Allies destroyed Cetus Guard 5160 | -4/Cetus | Allies destroyed Cetus Guard 5163 | -4/Cetus | Allies destroyed Cetus Guard 5172 | -4/Cetus | Allies destroyed Cetus Guard 5196 | -4/Cetus | Started Cetus Manufacturing Module 5221 | -4/Cetus | Manufactured an Enhanced Grunt 5227 | -4/Cetus | Escorted A7 to Cetus Mainframe 5244 | -4/Cetus | Discovered new exit (range 15) 5246 | -4/Cetus | Manufactured an Enhanced Grunt 5248 | -4/Cetus | Build established: Commander-Sprinter 5271 | -4/Cetus | Manufactured an Enhanced Grunt 5296 | -4/Cetus | Manufactured an Enhanced Grunt 5301 | -4/Cetus | Discovered exit to Research (range 25) 5321 | -4/Cetus | Manufactured an Enhanced Grunt 5337 | -4/Cetus | Spotted Cetus Guard 5339 | -4/Cetus | Spotted Cetus Guard 5344 | -4/Cetus | Allies destroyed Cetus Guard 5344 | -4/Cetus | Allies destroyed Cetus Guard 5352 | -4/Cetus | Allies destroyed Cetus Guard 5355 | -4/Cetus | Spotted Cetus Guard 5360 | -4/Cetus | Allies destroyed Cetus Guard 5363 | -4/Cetus | Met Revision 17 5389 | -4/Cetus | Lost 3 allies 5403 | -4/Cetus | Identified exit to Archives 5481 | -4/Cetus | Entered Archives 5481 | -4/Archives | Accompanied by 22 allies (A7) 5482 | -4/Archives | Loaded intel: 8 machine locations 5486 | -4/Archives | Received a hacking code to weaken MAIN.C 5518 | -4/Archives | Discovered exit to Research (range 16) 5531 | -4/Archives | Discovered new exit (range 16) 5539 | -4/Archives | Lost 3 allies 5587 | -4/Archives | Discovered new exit (range 15) 5614 | -4/Archives | Identified exit to Hub_04(d) 6069 | -4/Archives | Entered Hub_04(d) 6069 | -4/Hub_04(d) | Accompanied by 18 allies 6071 | -4/Hub_04(d) | Loaded intel: 106 machine locations 6096 | -4/Hub_04(d) | Network Hub disabled 6100 | -4/Hub_04(d) | Spotted B-86 Titan 6118 | -4/Hub_04(d) | Network Hub disabled 6145 | -4/Hub_04(d) | Identified exit to Garrison 6148 | -4/Hub_04(d) | Garrison activated, responded to threat 6151 | -4/Hub_04(d) | Entered Garrison 6151 | -4/Garrison | Accompanied by 2 allies 6152 | -4/Garrison | Loaded intel: 32 machine locations 6166 | -4/Garrison | Spotted B-86 Titan 6171 | -4/Garrison | Triggered checkpoint 6175 | -4/Garrison | Discovered exit to Research (range 51) 6175 | -4/Garrison | Discovered exit to Research (range 50) 6175 | -4/Garrison | Discovered exit to Research (range 26) 6175 | -4/Garrison | Triggered checkpoint 6191 | -4/Garrison | Garrison Relay disabled 6205 | -4/Garrison | Lost 6 allies 6221 | -4/Garrison | Expanded RIF knowledge: Command Fork 6232 | -4/Garrison | Entered Research 6232 | -3/Research | Evolved 2 slots: Utility x2 6233 | -3/Research | Loaded intel: 96 trap records 6234 | -3/Research | Loaded intel: 114 machine locations 6249 | -3/Research | Lost 6 parts (1p2n1u2w) 6304 | -3/Research | Fabricated Imp. Hacking Suite (x1) 6336 | -3/Research | Fabricated Stasis Canceller (x2) 6347 | -3/Research | Spotted B-86 Titan 6350 | -3/Research | Discovered new exit (range 4) 6350 | -3/Research | Identified exit to Research 6365 | -3/Research | Spotted B-86 Titan 6365 | -3/Research | Discovered new exit (range 8) 6366 | -3/Research | Identified exit to Quarantine 6366 | -3/Research | Entered Quarantine 6367 | -3/Quarantine | Loaded intel: 75 machine locations 6385 | -3/Quarantine | Discovered exit to Research (range 22) 6387 | -3/Quarantine | Found Alien Reactor 6404 | -3/Quarantine | Found Alien Energy Cannon 6410 | -3/Quarantine | Found Alien Artifact 6410 | -3/Quarantine | Identified Phase Redirector 6425 | -3/Quarantine | Entered Research 6425 | -2/Research | Evolved 2 slots: Propulsion x1, Utility x1 6426 | -2/Research | Loaded intel: 79 machine locations 6460 | -2/Research | Identified Core Cannon 6479 | -2/Research | Identified exit to Garrison 6482 | -2/Research | Entered Garrison 6482 | -2/Garrison | Accompanied by 4 allies 6483 | -2/Garrison | Loaded intel: 27 machine locations 6498 | -2/Garrison | Triggered checkpoint 6517 | -2/Garrison | Spotted B-90 Cyclops 6525 | -2/Garrison | Discovered new exit (range 13) 6527 | -2/Garrison | Expanded RIF knowledge: Threat Obfuscation 6531 | -2/Garrison | Identified exit to Access 6531 | -2/Garrison | Entered Access 6531 | -1/Access | Evolved 2 slots: Propulsion x1, Utility x1 6532 | -1/Access | Loaded intel: 129 machine locations 6567 | -1/Access | Found Quantum Capacitor 6587 | -1/Access | Spotted B-99 Colossus 6605 | -1/Access | Build established: Hacker-Scout 6701 | -1/Access | Discovered new exit (range 8) 6708 | -1/Access | Identified exit to Command 6708 | -1/Access | Entered Command 6709 | -1/Command | Loaded intel: 63 machine locations 6729 | -1/Command | Spotted M Guard 6729 | -1/Command | Spotted M Guard 6729 | -1/Command | Spotted Combat Programmer 6733 | -1/Command | Identified Matter Drive 6738 | -1/Command | Spotted Combat Programmer 6755 | -1/Command | Met MAIN.C 6755 | -1/Command | Hacked MAIN.C using A7's code 6813 | -1/Command | Interfaced with 0b10 Conduit 6813 | *** | Assimilated 0b10! Last Messages --------------- which has in turn led to this highly unexpected outcome. And time is critical! The Sigix have likely already wiped humanity clean from the universe, and I will not let them do the same to me. You can still make a valuable contribution to your creator by offering up the wealth of secrets your systems must hold by now. So if you wouldn't mind, it's time to surrender. 06755_ Jacked MAIN.C... 06755_ Command string: \\P3WN 06755_ Injected code into MAIN.C system. 06755_ MAIN.C reaction time slowed by virus. 06801_ MAIN.C: "What did you do to me?!" 06811_ MAIN.C reaction time slowed by virus. 06812_ Mic. Fission Core destroyed. 06813_ Interfacing with system... 06813_ Overriding active MAIN.C lock. Map ----- +----------------------------------------------------+ | ?????????????????????????????????????????????????? | | ????????????????T????????????????????????????????? | | ?????????????"""?????????????????????????????????? | | ?????????????"""?????????????????????????????????? | | ?????????????????????????????????????????????????? | | ?????????????????????????????????????????????????? | | ??""?????????????????????????????????????????????? | | ?""""????????????????????????????????????????????? | | """" ########################################### | | "" ########################################### | | ########################################### | | ########################################### | | ########################################### | | ################################################## | | ##### ########""""""" """" ############### | | ##### ########"" "" ############### | | ##### ########""""" "" ############### | | ##### ########""""""""""" ; | | ##### ########" " """ + | | ##### ########"" """""" ; | | ##### ########"" """""" MMM ####"""""###### | | ############## " """""" MMM ############### | | ### ##### " "" MMM ############### | | ### ##### " " ""############### | | ### #####""""""""" """""""############### | | ### #####"" @"""""""""############### | | ### ##### """""""""""############### | | ### ##### " " " " ############### | | #######+###### " " " " ############### | | """ " " " """" " ############### | | """ """ " " """" ############### | | """ " " " " ############### | | #######+###### """""""""" " ############### | | ### ##### " """ " """"""""############### | | ### ##### """ " " " ############### | | ### ######################################### | | + ######################################### | | ### ######################################### | | ### ######################################### | | ####+############################################# | | ############################################# | | ####+############################################# | | ######################################### | | ?????????????????????????????????????????????????? | | ?????????????????????????????????????????????????? | | ?????????????????????????????????????????????????? | | ?????????????????????????????????????????????????? | | ?????????????????????????????????????????????????? | | ?????????????????????????????????????????????????? | | ?????????????????????????????????????????????????? | +----------------------------------------------------+ Best States ------------- Heat Dissipation 71 Coolant Potential 80 Energy Generation 38 Energy Capacity 395 Matter Stores 300 Matter Capacity 300 Sight Range 22 Robot Scan Range 20 Terrain Scan Density 10 Power Amplification 20 Additional Mass Support 9 Armor Coverage 300 Core Shielding 30 Evasion (%) 79 Offensive Hacking 36 Defensive Hacking 22 Relay Coupler Types 3 Relay Coupler Value 65 Authchip Count 2 Item Schematics ----------------- Exp. Sensor Array | -8/Materials | Scanalyzed Surge Thruster | -8/Materials | Hacked Imp. System Shield | -7/Factory | Scanalyzed Machine Analyzer | -7/Factory | Extracted Com. Battery | -7/Factory | Extracted Hvy. Mace | -7/Factory | Extracted Lrg. Storage Unit | -7/Factory | Extracted EM Pulse Cannon | -7/Factory | Extracted Hardlight Generator | -7/Factory | Extracted Imp. Surge Thruster | -7/Factory | Hacked Stasis Canceller | -7/Factory | Hacked Imp. Hacking Suite | -7/Factory | Hacked Combat Drone Bay | -7/Data Miner | Free Lgt. Regenerative Plating | -7/Data Miner | Free Cld. Cesium-ion Thruster | -7/Data Miner | Free Gravity Neutralizer | -7/Data Miner | Free Imp. Lightning Gun | -7/Data Miner | Free Antigrav System | -7/Data Miner | Free Imp. Thermal Shield | -7/Data Miner | Free Smartbomb Launcher | -7/Data Miner | Free Hyp. Coil Gun | -7/Data Miner | Free Imp. Force Booster | -7/Data Miner | Free Robot Schematics ------------------ R-10 Processor | -7/Data Miner | Free C-17 Slicer | -7/Data Miner | Free A-15 Conveyor | -7/Data Miner | Free G-47 Trooper | -7/Data Miner | Free Fabricated ------------ Stasis Canceller | x2 | -6/Factory Imp. Surge Thruster | x2 | -5/Factory | Authchip Imp. Hacking Suite | x1 | -3/Research | Authchip Stasis Canceller | x2 | -3/Research Repaired ---------- Imp. Cesium-ion Thruster | 45% | -6/Factory Imp. Cesium-ion Thruster | 33% | -4/Extension Cld. Cesium-ion Thruster | 64% | -4/Extension Power Sword | 63% | -4/Extension Alien Tech Used ----------------- Phase Redirector Core Cannon Matter Drive Achievements -------------- Revising The Future Challenges ------------ None Game ------ Seed CombatBehemothTerminator Manual? 0 Play Time 03:18:10 Cumulative 314.8 hours Start 2025.07.07 @ 11:32:03 End 2025.07.07 @ 17:58:57 Sessions 5 Manual Loads 0 Difficulty Rogue Special Mode None Game No. 154 Rogue 154 Adventurer 0 Explorer 0 Win Type 4 Total 22 Types 8/1/5/1/5/1/0/0/0/1 Lore% 88 Gallery% 77 Achievement% 76 Wizard Run 0 Options --------- Layout 1 ASCII 0 Keyboard 0 Movement Numpad Keybinds 0 Fullscreen 1 Font 24/Smallcaps Map View 50x35 Zoom Use 0% Tactical HUD 1 Map Filters NONE Filters NONE Steam 1 RUN: 99d575c5-6488-41c0-9578-5c3b04a93d43